[Event "Titled Tuesday Blitz September 27 Early 2022"]
[White "Balkum, Alexander"]
[Black "Rosen, Eric"]
[WhiteFideId "2005069"]
[BlackFideId "2032562"]
[WhiteElo "2371"]
[BlackElo "2362"]
[Result "1-0"]
[Round "06"]
[TimeControl "180+1"]
[Date "2022.09.27"]
[WhiteClock "0:00:17"]
[BlackClock "0:00:03"]

1. e4 {[%clk 0:03:00]}  c5 {[%clk 0:02:55]} 2. Nf3 {[%clk 0:03:00]}  d6 {[%clk 0:02:51]} 3. d4 {[%clk 0:03:00]}  Nf6 {[%clk 0:02:51]} 4. Nc3 {[%clk 0:02:59]}  cxd4 {[%clk 0:02:52]} 5. Nxd4 {[%clk 0:03:00]}  g6 {[%clk 0:02:51]} 6. Be3 {[%clk 0:03:00]}  Bg7 {[%clk 0:02:49]} 7. Be2 {[%clk 0:03:00]}  O-O {[%clk 0:02:47]} 8. Qd2 {[%clk 0:03:01]}  Nc6 {[%clk 0:02:48]} 9. O-O-O {[%clk 0:03:00]}  Nxd4 {[%clk 0:02:31]} 10. Bxd4 {[%clk 0:03:01]}  Be6 {[%clk 0:02:32]} 11. h4 {[%clk 0:02:58]}  b5 {[%clk 0:02:26]} 12. Bxb5 {[%clk 0:02:35]}  Rb8 {[%clk 0:02:25]} 13. Ba4 {[%clk 0:02:29]}  Qa5 {[%clk 0:02:09]} 14. Bb3 {[%clk 0:02:28]}  Rfc8 {[%clk 0:01:51]} 15. Kb1 {[%clk 0:02:28]}  Qb4 {[%clk 0:01:40]} 16. Nd5 {[%clk 0:01:41]}  Qxd2 {[%clk 0:01:24]} 17. Nxf6+ {[%clk 0:01:39]}  Bxf6 {[%clk 0:01:11]} 18. Rxd2 {[%clk 0:01:39]}  Kg7 {[%clk 0:00:47]} 19. f4 {[%clk 0:01:18]}  Bxb3 {[%clk 0:00:17]} 20. axb3 {[%clk 0:01:16]}  Bxd4 {[%clk 0:00:10]} 21. Rxd4 {[%clk 0:01:17]}  Rb5 {[%clk 0:00:10]} 22. Rhd1 {[%clk 0:01:09]}  Kf6 {[%clk 0:00:10]} 23. Rd5 {[%clk 0:01:05]}  Rb4 {[%clk 0:00:09]} 24. R1d4 {[%clk 0:01:03]}  Rcb8 {[%clk 0:00:09]} 25. Kc1 {[%clk 0:00:51]}  Ke6 {[%clk 0:00:10]} 26. Kd2 {[%clk 0:00:48]}  f5 {[%clk 0:00:08]} 27. Kd3 {[%clk 0:00:25]}  fxe4+ {[%clk 0:00:07]} 28. Rxe4+ {[%clk 0:00:26]}  Rxe4 {[%clk 0:00:07]} 29. Kxe4 {[%clk 0:00:26]}  Rb4+ {[%clk 0:00:06]} 30. Rd4 {[%clk 0:00:27]}  Rxd4+ {[%clk 0:00:02]} 31. Kxd4 {[%clk 0:00:28]}  Kf5 {[%clk 0:00:03]} 32. Ke3 {[%clk 0:00:27]}  Kg4 {[%clk 0:00:04]} 33. b4 {[%clk 0:00:18]}  Kxh4 {[%clk 0:00:02]} 34. c4 {[%clk 0:00:18]}  Kg4 {[%clk 0:00:02]} 35. c5 {[%clk 0:00:18]}  dxc5 {[%clk 0:00:03]} 36. bxc5 {[%clk 0:00:19]}  Kf5 {[%clk 0:00:04]} 37. Kd4 {[%clk 0:00:17]}  Ke6 {[%clk 0:00:03]} 38. b4 {[%clk 0:00:16]}  a6 {[%clk 0:00:03]} 39. Ke4 {[%clk 0:00:16]}  h6 {[%clk 0:00:03]} 40. g4 {[%clk 0:00:14]}  h5 {[%clk 0:00:03]} 41. f5+ {[%clk 0:00:13]}  gxf5+ {[%clk 0:00:02]} 42. gxf5+ {[%clk 0:00:14]}  Kd7 {[%clk 0:00:02]} 43. Kf4 {[%clk 0:00:14]}  Kc6 {[%clk 0:00:02]} 44. Kg5 {[%clk 0:00:14]}  Kb5 {[%clk 0:00:01]} 45. Kxh5 {[%clk 0:00:14]}  a5 {[%clk 0:00:02]} 46. bxa5 {[%clk 0:00:14]}  Kxa5 {[%clk 0:00:02]} 47. Kg6 {[%clk 0:00:14]}  Kb5 {[%clk 0:00:02]} 48. Kf7 {[%clk 0:00:15]}  e5 {[%clk 0:00:02]} 49. fxe6 {[%clk 0:00:15]}  Kxc5 {[%clk 0:00:02]} 50. e7 {[%clk 0:00:16]}  Kd4 {[%clk 0:00:02]} 51. e8=Q {[%clk 0:00:16]}  Kc3 {[%clk 0:00:02]} 52. Qe6 {[%clk 0:00:17]}  Kd4 {[%clk 0:00:03]} 53. Ke7 {[%clk 0:00:17]} 1-0


[Site "https://www.chess.com"]

[Event "Titled Tuesday Blitz September 27 Early 2022"]
[White "Baskakov, Egor"]
[Black "Ahn, Hongjin"]
[WhiteFideId "24197866"]
[BlackFideId "13201492"]
[WhiteElo "2211"]
[BlackElo "1873"]
[Result "1-0"]
[Round "06"]
[TimeControl "180+1"]
[Date "2022.09.27"]
[WhiteClock "0:01:58"]
[BlackClock "0:00:01"]

1. e4 {[%clk 0:03:00]}  c5 {[%clk 0:02:59]} 2. Nf3 {[%clk 0:03:00]}  Nf6 {[%clk 0:02:59]} 3. Nc3 {[%clk 0:03:00]}  d5 {[%clk 0:02:59]} 4. exd5 {[%clk 0:02:59]}  Nxd5 {[%clk 0:03:00]} 5. Bc4 {[%clk 0:02:59]}  Nb6 {[%clk 0:02:57]} 6. Bb5+ {[%clk 0:02:58]}  Bd7 {[%clk 0:02:57]} 7. O-O {[%clk 0:02:57]}  e6 {[%clk 0:02:55]} 8. d4 {[%clk 0:02:56]}  a6 {[%clk 0:02:37]} 9. Bxd7+ {[%clk 0:02:54]}  Qxd7 {[%clk 0:02:34]} 10. Re1 {[%clk 0:02:54]}  cxd4 {[%clk 0:02:20]} 11. Nxd4 {[%clk 0:02:55]}  Bc5 {[%clk 0:02:18]} 12. Be3 {[%clk 0:02:32]}  Be7 {[%clk 0:00:16]} 13. Qg4 {[%clk 0:02:23]}  O-O {[%clk 0:00:07]} 14. Rad1 {[%clk 0:02:21]}  Qc8 {[%clk 0:00:04]} 15. Nxe6 {[%clk 0:02:16]}  fxe6 {[%clk 0:00:04]} 16. Bxb6 {[%clk 0:02:16]}  Nc6 {[%clk 0:00:03]} 17. Qxe6+ {[%clk 0:02:11]}  Qxe6 {[%clk 0:00:03]} 18. Rxe6 {[%clk 0:02:12]}  Bf6 {[%clk 0:00:03]} 19. Ne4 {[%clk 0:02:05]}  Bxb2 {[%clk 0:00:03]} 20. Rb1 {[%clk 0:02:05]}  Ba3 {[%clk 0:00:02]} 21. Bc5 {[%clk 0:02:02]}  Bxc5 {[%clk 0:00:02]} 22. Nxc5 {[%clk 0:02:03]}  Nd4 {[%clk 0:00:02]} 23. Re7 {[%clk 0:02:00]}  b6 {[%clk 0:00:01]} 24. Rxb6 {[%clk 0:01:58]} 1-0


[Site "https://www.chess.com"]

[Event "Titled Tuesday Blitz September 27 Early 2022"]
[White "Becerra, Juan David"]
[Black "Arabidze, Meri"]
[WhiteFideId "4404998"]
[BlackFideId "13604040"]
[WhiteElo "2278"]
[BlackElo "2335"]
[Result "1/2-1/2"]
[Round "06"]
[TimeControl "180+1"]
[Date "2022.09.27"]
[WhiteClock "0:00:21"]
[BlackClock "0:00:24"]

1. e4 {[%clk 0:03:00]}  c5 {[%clk 0:02:59]} 2. d4 {[%clk 0:03:01]}  cxd4 {[%clk 0:02:59]} 3. c3 {[%clk 0:03:01]}  dxc3 {[%clk 0:02:59]} 4. Nxc3 {[%clk 0:03:02]}  Nc6 {[%clk 0:02:58]} 5. Nf3 {[%clk 0:03:01]}  d6 {[%clk 0:02:56]} 6. Bc4 {[%clk 0:03:01]}  Nf6 {[%clk 0:02:55]} 7. e5 {[%clk 0:03:00]}  dxe5 {[%clk 0:02:26]} 8. Qxd8+ {[%clk 0:02:59]}  Nxd8 {[%clk 0:02:26]} 9. Nb5 {[%clk 0:02:57]}  Rb8 {[%clk 0:02:05]} 10. Nxe5 {[%clk 0:02:57]}  e6 {[%clk 0:01:55]} 11. Be3 {[%clk 0:02:49]}  Bb4+ {[%clk 0:01:35]} 12. Ke2 {[%clk 0:02:48]}  Nc6 {[%clk 0:01:34]} 13. Nd3 {[%clk 0:02:12]}  a6 {[%clk 0:01:08]} 14. Nxb4 {[%clk 0:01:55]}  Nxb4 {[%clk 0:01:09]} 15. Nc7+ {[%clk 0:01:40]}  Kd7 {[%clk 0:01:03]} 16. Rhd1+ {[%clk 0:01:36]}  Nbd5 {[%clk 0:00:48]} 17. Bxd5 {[%clk 0:01:22]}  Nxd5 {[%clk 0:00:45]} 18. Rac1 {[%clk 0:01:22]}  Ke7 {[%clk 0:00:32]} 19. Ba7 {[%clk 0:01:18]}  Bd7 {[%clk 0:00:21]} 20. Nxd5+ {[%clk 0:01:16]}  exd5 {[%clk 0:00:21]} 21. Bxb8 {[%clk 0:01:17]}  Rxb8 {[%clk 0:00:21]} 22. Rxd5 {[%clk 0:01:17]}  Bc6 {[%clk 0:00:21]} 23. Rd3 {[%clk 0:01:11]}  Bb5 {[%clk 0:00:21]} 24. Rc7+ {[%clk 0:01:06]}  Ke6 {[%clk 0:00:21]} 25. Ke3 {[%clk 0:01:06]}  Bxd3 {[%clk 0:00:20]} 26. Kxd3 {[%clk 0:01:07]}  Rd8+ {[%clk 0:00:21]} 27. Kc3 {[%clk 0:01:06]}  Rd7 {[%clk 0:00:21]} 28. Rxd7 {[%clk 0:01:05]}  Kxd7 {[%clk 0:00:22]} 29. Kd4 {[%clk 0:01:01]}  Kd6 {[%clk 0:00:22]} 30. a4 {[%clk 0:01:01]}  a5 {[%clk 0:00:21]} 31. f3 {[%clk 0:00:58]}  f6 {[%clk 0:00:20]} 32. Kc4 {[%clk 0:00:56]}  Kc6 {[%clk 0:00:20]} 33. g3 {[%clk 0:00:54]}  g6 {[%clk 0:00:20]} 34. h3 {[%clk 0:00:53]}  h6 {[%clk 0:00:20]} 35. h4 {[%clk 0:00:36]}  f5 {[%clk 0:00:20]} 36. g4 {[%clk 0:00:31]}  fxg4 {[%clk 0:00:18]} 37. fxg4 {[%clk 0:00:32]}  h5 {[%clk 0:00:17]} 38. gxh5 {[%clk 0:00:30]}  gxh5 {[%clk 0:00:17]} 39. Kd4 {[%clk 0:00:25]}  Kd6 {[%clk 0:00:17]} 40. Ke4 {[%clk 0:00:26]}  Ke6 {[%clk 0:00:17]} 41. Kf4 {[%clk 0:00:23]}  Kf6 {[%clk 0:00:17]} 42. Ke4 {[%clk 0:00:24]}  Ke6 {[%clk 0:00:17]} 43. Kd4 {[%clk 0:00:24]}  Kd6 {[%clk 0:00:17]} 44. Kc4 {[%clk 0:00:24]}  Kc6 {[%clk 0:00:18]} 45. b3 {[%clk 0:00:16]}  b6 {[%clk 0:00:17]} 46. b4 {[%clk 0:00:16]}  axb4 {[%clk 0:00:17]} 47. Kxb4 {[%clk 0:00:17]}  Kc7 {[%clk 0:00:15]} 48. Kb5 {[%clk 0:00:15]}  Kb7 {[%clk 0:00:15]} 49. Kb4 {[%clk 0:00:14]}  Ka6 {[%clk 0:00:15]} 50. Kc4 {[%clk 0:00:13]}  Ka5 {[%clk 0:00:14]} 51. Kb3 {[%clk 0:00:13]}  b5 {[%clk 0:00:15]} 52. axb5 {[%clk 0:00:14]}  Kxb5 {[%clk 0:00:16]} 53. Kc3 {[%clk 0:00:14]}  Kc5 {[%clk 0:00:16]} 54. Kd3 {[%clk 0:00:15]}  Kd5 {[%clk 0:00:17]} 55. Ke3 {[%clk 0:00:15]}  Ke5 {[%clk 0:00:17]} 56. Kf3 {[%clk 0:00:16]}  Kf5 {[%clk 0:00:18]} 57. Kg2 {[%clk 0:00:17]}  Kg4 {[%clk 0:00:18]} 58. Kh1 {[%clk 0:00:17]}  Kxh4 {[%clk 0:00:19]} 59. Kg1 {[%clk 0:00:18]}  Kg4 {[%clk 0:00:20]} 60. Kh1 {[%clk 0:00:19]}  h4 {[%clk 0:00:21]} 61. Kg1 {[%clk 0:00:19]}  Kg3 {[%clk 0:00:21]} 62. Kh1 {[%clk 0:00:20]}  h3 {[%clk 0:00:22]} 63. Kg1 {[%clk 0:00:20]}  h2+ {[%clk 0:00:23]} 64. Kh1 {[%clk 0:00:21]}  Kh3 {[%clk 0:00:24]} 1/2-1/2


[Site "https://www.chess.com"]

[Event "Titled Tuesday Blitz September 27 Early 2022"]
[White "Bharath Subramaniyam H"]
[Black "Lewtak, Damian"]
[WhiteFideId "46634827"]
[BlackFideId "1141724"]
[WhiteElo "2346"]
[BlackElo "2329"]
[Result "0-1"]
[Round "06"]
[TimeControl "180+1"]
[Date "2022.09.27"]
[WhiteClock "0:00:01"]
[BlackClock "0:00:02"]

1. d4 {[%clk 0:02:59]}  g6 {[%clk 0:02:56]} 2. Nc3 {[%clk 0:02:57]}  Bg7 {[%clk 0:02:57]} 3. e4 {[%clk 0:02:57]}  d6 {[%clk 0:02:57]} 4. Nf3 {[%clk 0:02:57]}  a6 {[%clk 0:02:51]} 5. a4 {[%clk 0:02:54]}  Nf6 {[%clk 0:02:49]} 6. Be2 {[%clk 0:02:52]}  O-O {[%clk 0:02:48]} 7. O-O {[%clk 0:02:52]}  Nc6 {[%clk 0:02:45]} 8. d5 {[%clk 0:02:48]}  Nb8 {[%clk 0:02:44]} 9. Be3 {[%clk 0:02:44]}  Bg4 {[%clk 0:02:43]} 10. Nd4 {[%clk 0:02:43]}  Bxe2 {[%clk 0:02:42]} 11. Qxe2 {[%clk 0:02:44]}  c5 {[%clk 0:02:34]} 12. Nf3 {[%clk 0:02:19]}  Nbd7 {[%clk 0:02:30]} 13. Nd2 {[%clk 0:02:19]}  Ne8 {[%clk 0:02:26]} 14. a5 {[%clk 0:02:15]}  Nc7 {[%clk 0:02:25]} 15. Rfb1 {[%clk 0:01:53]}  f5 {[%clk 0:02:06]} 16. f3 {[%clk 0:01:41]}  f4 {[%clk 0:01:41]} 17. Bf2 {[%clk 0:01:39]}  e6 {[%clk 0:01:37]} 18. dxe6 {[%clk 0:01:35]}  Nxe6 {[%clk 0:01:38]} 19. Nd5 {[%clk 0:01:31]}  Nd4 {[%clk 0:01:34]} 20. Qd1 {[%clk 0:01:29]}  Nf6 {[%clk 0:01:32]} 21. c3 {[%clk 0:01:29]}  Nc6 {[%clk 0:01:32]} 22. Nc4 {[%clk 0:01:28]}  Kh8 {[%clk 0:01:20]} 23. Ndb6 {[%clk 0:01:26]}  Rb8 {[%clk 0:01:16]} 24. Qxd6 {[%clk 0:01:25]}  Qe8 {[%clk 0:01:15]} 25. Qxc5 {[%clk 0:01:21]}  Qf7 {[%clk 0:01:02]} 26. Rd1 {[%clk 0:01:15]}  Rbd8 {[%clk 0:01:02]} 27. Nd6 {[%clk 0:01:05]}  Qe7 {[%clk 0:00:54]} 28. Ndc4 {[%clk 0:00:46]}  Qe6 {[%clk 0:00:49]} 29. Rd6 {[%clk 0:00:41]}  Rxd6 {[%clk 0:00:48]} 30. Qxd6 {[%clk 0:00:42]}  Qf7 {[%clk 0:00:47]} 31. e5 {[%clk 0:00:38]}  Ne8 {[%clk 0:00:42]} 32. Qc5 {[%clk 0:00:29]}  g5 {[%clk 0:00:40]} 33. Re1 {[%clk 0:00:28]}  g4 {[%clk 0:00:40]} 34. e6 {[%clk 0:00:28]}  Qg6 {[%clk 0:00:40]} 35. e7 {[%clk 0:00:24]}  Rg8 {[%clk 0:00:33]} 36. fxg4 {[%clk 0:00:18]}  Qxg4 {[%clk 0:00:33]} 37. h3 {[%clk 0:00:19]}  Qg6 {[%clk 0:00:30]} 38. Qd5 {[%clk 0:00:19]}  Bf6 {[%clk 0:00:23]} 39. Nc8 {[%clk 0:00:15]}  Nc7 {[%clk 0:00:19]} 40. Qf3 {[%clk 0:00:11]}  Rxc8 {[%clk 0:00:17]} 41. Qxf4 {[%clk 0:00:11]}  Rg8 {[%clk 0:00:16]} 42. g4 {[%clk 0:00:10]}  Ne8 {[%clk 0:00:16]} 43. Bc5 {[%clk 0:00:09]}  h5 {[%clk 0:00:14]} 44. Re4 {[%clk 0:00:08]}  Qg5 {[%clk 0:00:11]} 45. Qxg5 {[%clk 0:00:08]}  Rxg5 {[%clk 0:00:07]} 46. Nd6 {[%clk 0:00:08]}  Rxc5 {[%clk 0:00:07]} 47. Nxe8 {[%clk 0:00:08]}  Bxe7 {[%clk 0:00:07]} 48. Nc7 {[%clk 0:00:04]}  Rxa5 {[%clk 0:00:06]} 49. Ne6 {[%clk 0:00:04]}  Ra1+ {[%clk 0:00:05]} 50. Kg2 {[%clk 0:00:04]}  Ra2 {[%clk 0:00:06]} 51. Re2 {[%clk 0:00:04]}  hxg4 {[%clk 0:00:07]} 52. hxg4 {[%clk 0:00:04]}  Bf6 {[%clk 0:00:07]} 53. Kf3 {[%clk 0:00:04]}  Ne5+ {[%clk 0:00:07]} 54. Kf4 {[%clk 0:00:04]}  Kg8 {[%clk 0:00:05]} 55. Nc5 {[%clk 0:00:02]}  Ng6+ {[%clk 0:00:02]} 56. Kf5 {[%clk 0:00:02]}  Kf7 {[%clk 0:00:03]} 57. Nxb7 {[%clk 0:00:01]}  Ne7+ {[%clk 0:00:02]} 58. Ke4 {[%clk 0:00:01]}  Ng6 {[%clk 0:00:02]} 59. Nd6+ {[%clk 0:00:01]}  Kf8 {[%clk 0:00:02]} 60. Rf2 {[%clk 0:00:01]}  Ke7 {[%clk 0:00:02]} 0-1


[Site "https://www.chess.com"]

[Event "Titled Tuesday Blitz September 27 Early 2022"]
[White "Bilan, Danila"]
[Black "Wagner, Dennis"]
[WhiteFideId "24161918"]
[BlackFideId "24650684"]
[WhiteElo "2164"]
[BlackElo "2355"]
[Result "0-1"]
[Round "06"]
[TimeControl "180+1"]
[Date "2022.09.27"]
[WhiteClock "0:00:02"]
[BlackClock "0:00:11"]

1. d4 {[%clk 0:03:00]}  Nf6 {[%clk 0:03:00]} 2. Nf3 {[%clk 0:03:00]}  g6 {[%clk 0:03:00]} 3. Bg5 {[%clk 0:03:00]}  Bg7 {[%clk 0:03:00]} 4. c3 {[%clk 0:02:59]}  O-O {[%clk 0:03:01]} 5. Nbd2 {[%clk 0:02:58]}  d6 {[%clk 0:03:01]} 6. e4 {[%clk 0:02:58]}  c5 {[%clk 0:03:01]} 7. Bc4 {[%clk 0:02:55]}  cxd4 {[%clk 0:02:57]} 8. cxd4 {[%clk 0:02:56]}  Nxe4 {[%clk 0:02:53]} 9. Nxe4 {[%clk 0:02:24]}  d5 {[%clk 0:02:53]} 10. Bd3 {[%clk 0:02:24]}  dxe4 {[%clk 0:02:53]} 11. Bxe4 {[%clk 0:02:25]}  Nd7 {[%clk 0:02:44]} 12. O-O {[%clk 0:02:16]}  Nf6 {[%clk 0:02:44]} 13. Bc2 {[%clk 0:02:10]}  Be6 {[%clk 0:02:45]} 14. Bb3 {[%clk 0:02:02]}  Bd5 {[%clk 0:02:41]} 15. Re1 {[%clk 0:01:59]}  Re8 {[%clk 0:02:35]} 16. Qd3 {[%clk 0:01:33]}  Qd6 {[%clk 0:02:14]} 17. Rad1 {[%clk 0:01:14]}  e6 {[%clk 0:02:14]} 18. Ne5 {[%clk 0:01:08]}  Rac8 {[%clk 0:01:34]} 19. Qh3 {[%clk 0:01:02]}  Bxb3 {[%clk 0:01:29]} 20. Qxb3 {[%clk 0:01:01]}  b6 {[%clk 0:01:25]} 21. Qf3 {[%clk 0:00:58]}  Qd5 {[%clk 0:00:59]} 22. Qf4 {[%clk 0:00:52]}  Qd8 {[%clk 0:01:00]} 23. Qh4 {[%clk 0:00:32]}  h6 {[%clk 0:00:41]} 24. Bxh6 {[%clk 0:00:23]}  Nd5 {[%clk 0:00:41]} 25. Qxd8 {[%clk 0:00:11]}  Rexd8 {[%clk 0:00:42]} 26. Bxg7 {[%clk 0:00:10]}  Kxg7 {[%clk 0:00:43]} 27. Rd2 {[%clk 0:00:10]}  Nb4 {[%clk 0:00:42]} 28. a3 {[%clk 0:00:10]}  Nc2 {[%clk 0:00:42]} 29. Red1 {[%clk 0:00:09]}  Rxd4 {[%clk 0:00:30]} 30. Rxd4 {[%clk 0:00:05]}  Nxd4 {[%clk 0:00:31]} 31. g3 {[%clk 0:00:05]}  Nb3 {[%clk 0:00:15]} 32. Rd7 {[%clk 0:00:05]}  Kf6 {[%clk 0:00:14]} 33. Nxf7 {[%clk 0:00:03]}  Rc2 {[%clk 0:00:11]} 34. Rxa7 {[%clk 0:00:02]}  Rxb2 {[%clk 0:00:11]} 0-1


[Site "https://www.chess.com"]

[Event "Titled Tuesday Blitz September 27 Early 2022"]
[White "Bilych, Olexiy"]
[Black "Shandrygin, Nikita"]
[WhiteFideId "14156504"]
[BlackFideId "24198668"]
[WhiteElo "2157"]
[BlackElo "2323"]
[Result "0-1"]
[Round "06"]
[TimeControl "180+1"]
[Date "2022.09.27"]
[WhiteClock "0:00:13"]
[BlackClock "0:00:06"]

1. e4 {[%clk 0:03:00]}  c5 {[%clk 0:02:58]} 2. Nf3 {[%clk 0:03:01]}  e6 {[%clk 0:02:56]} 3. d4 {[%clk 0:03:01]}  cxd4 {[%clk 0:02:56]} 4. Nxd4 {[%clk 0:03:02]}  Nf6 {[%clk 0:02:57]} 5. Nc3 {[%clk 0:03:02]}  Nc6 {[%clk 0:02:57]} 6. Nxc6 {[%clk 0:03:03]}  bxc6 {[%clk 0:02:58]} 7. e5 {[%clk 0:03:04]}  Nd5 {[%clk 0:02:59]} 8. Ne4 {[%clk 0:03:04]}  Qc7 {[%clk 0:02:59]} 9. f4 {[%clk 0:03:04]}  Qb6 {[%clk 0:03:00]} 10. c4 {[%clk 0:03:05]}  Bb4+ {[%clk 0:03:01]} 11. Ke2 {[%clk 0:03:05]}  f5 {[%clk 0:03:02]} 12. Nf2 {[%clk 0:02:58]}  Ba6 {[%clk 0:03:00]} 13. Kf3 {[%clk 0:02:59]}  Ne7 {[%clk 0:03:00]} 14. Be3 {[%clk 0:02:54]}  Bc5 {[%clk 0:03:00]} 15. Bxc5 {[%clk 0:02:47]}  Qxc5 {[%clk 0:03:01]} 16. Qd6 {[%clk 0:02:33]}  Qa5 {[%clk 0:03:00]} 17. a3 {[%clk 0:02:25]}  c5 {[%clk 0:02:27]} 18. Be2 {[%clk 0:01:50]}  g5 {[%clk 0:01:40]} 19. b4 {[%clk 0:01:46]}  Bb7+ {[%clk 0:01:35]} 20. Kg3 {[%clk 0:01:39]}  gxf4+ {[%clk 0:01:22]} 21. Kh3 {[%clk 0:01:35]}  Qd8 {[%clk 0:01:11]} 22. g3 {[%clk 0:00:55]}  Ng6 {[%clk 0:00:59]} 23. Bh5 {[%clk 0:00:53]}  Qg5 {[%clk 0:00:51]} 24. Qd1 {[%clk 0:00:49]}  O-O-O {[%clk 0:00:25]} 25. Rg1 {[%clk 0:00:48]}  Nxe5 {[%clk 0:00:20]} 26. gxf4 {[%clk 0:00:34]}  Qxf4 {[%clk 0:00:19]} 27. Nd3 {[%clk 0:00:34]}  Qe3+ {[%clk 0:00:18]} 28. Rg3 {[%clk 0:00:34]}  Qd4 {[%clk 0:00:17]} 29. Nxc5 {[%clk 0:00:31]}  Qf4 {[%clk 0:00:10]} 30. Qc1 {[%clk 0:00:25]}  Qxc1 {[%clk 0:00:07]} 31. Rxc1 {[%clk 0:00:26]}  Rhg8 {[%clk 0:00:08]} 32. Re3 {[%clk 0:00:21]}  Ng6 {[%clk 0:00:06]} 33. Rf1 {[%clk 0:00:19]}  Kc7 {[%clk 0:00:05]} 34. Nd3 {[%clk 0:00:17]}  Rdf8 {[%clk 0:00:05]} 35. Bxg6 {[%clk 0:00:16]}  hxg6 {[%clk 0:00:05]} 36. Ne5 {[%clk 0:00:16]}  d6 {[%clk 0:00:06]} 37. Nf3 {[%clk 0:00:14]}  e5 {[%clk 0:00:06]} 38. Ng5 {[%clk 0:00:15]}  Rh8+ {[%clk 0:00:05]} 39. Kg3 {[%clk 0:00:13]}  f4+ {[%clk 0:00:06]} 40. Kg4 {[%clk 0:00:13]}  Bc8+ {[%clk 0:00:06]} 0-1


[Site "https://www.chess.com"]

[Event "Titled Tuesday Blitz September 27 Early 2022"]
[White "Carrasco Miranda, Andres"]
[Black "Zong, Davis"]
[WhiteFideId "3405990"]
[BlackFideId "30903955"]
[WhiteElo "2177"]
[BlackElo "2061"]
[Result "0-1"]
[Round "06"]
[TimeControl "180+1"]
[Date "2022.09.27"]
[WhiteClock "0:00:02"]
[BlackClock "0:00:13"]

1. d4 {[%clk 0:03:00]}  d5 {[%clk 0:03:00]} 2. c4 {[%clk 0:03:00]}  c6 {[%clk 0:03:00]} 3. Nf3 {[%clk 0:03:01]}  Nf6 {[%clk 0:03:01]} 4. e3 {[%clk 0:03:01]}  Bf5 {[%clk 0:03:00]} 5. Nc3 {[%clk 0:03:01]}  e6 {[%clk 0:03:01]} 6. Nh4 {[%clk 0:03:00]}  Be4 {[%clk 0:03:01]} 7. f3 {[%clk 0:03:00]}  Bg6 {[%clk 0:03:01]} 8. Qb3 {[%clk 0:03:00]}  Qb6 {[%clk 0:03:00]} 9. Bd2 {[%clk 0:02:58]}  Nbd7 {[%clk 0:02:57]} 10. Nxg6 {[%clk 0:02:58]}  hxg6 {[%clk 0:02:57]} 11. Bd3 {[%clk 0:02:55]}  Bd6 {[%clk 0:02:40]} 12. f4 {[%clk 0:02:05]}  dxc4 {[%clk 0:02:18]} 13. Bxc4 {[%clk 0:02:03]}  Nd5 {[%clk 0:02:17]} 14. Ne4 {[%clk 0:02:00]}  Be7 {[%clk 0:02:11]} 15. Qxb6 {[%clk 0:01:59]}  axb6 {[%clk 0:02:11]} 16. Ke2 {[%clk 0:01:55]}  b5 {[%clk 0:02:04]} 17. Bb3 {[%clk 0:01:55]}  Kd8 {[%clk 0:01:57]} 18. g4 {[%clk 0:01:44]}  Kc7 {[%clk 0:01:50]} 19. g5 {[%clk 0:01:39]}  f5 {[%clk 0:01:42]} 20. Nc3 {[%clk 0:01:36]}  Rh3 {[%clk 0:01:34]} 21. Nxd5+ {[%clk 0:01:33]}  exd5 {[%clk 0:01:33]} 22. Kf2 {[%clk 0:01:31]}  Nb6 {[%clk 0:01:26]} 23. Kg2 {[%clk 0:01:30]}  Rh4 {[%clk 0:01:24]} 24. Be1 {[%clk 0:01:28]}  Rhh8 {[%clk 0:01:23]} 25. h4 {[%clk 0:01:27]}  Nc4 {[%clk 0:01:17]} 26. Bxc4 {[%clk 0:01:25]}  bxc4 {[%clk 0:01:18]} 27. Rh3 {[%clk 0:01:19]}  Ra4 {[%clk 0:01:12]} 28. a3 {[%clk 0:01:15]}  b5 {[%clk 0:01:10]} 29. Rb1 {[%clk 0:00:57]}  b4 {[%clk 0:01:04]} 30. Bxb4 {[%clk 0:00:53]}  Bxb4 {[%clk 0:01:04]} 31. axb4 {[%clk 0:00:54]}  Rxb4 {[%clk 0:01:04]} 32. Kf3 {[%clk 0:00:55]}  c3 {[%clk 0:00:59]} 33. Rhh1 {[%clk 0:00:49]}  cxb2 {[%clk 0:00:58]} 34. Ke2 {[%clk 0:00:46]}  Ra8 {[%clk 0:00:51]} 35. Kd3 {[%clk 0:00:43]}  Ra3+ {[%clk 0:00:49]} 36. Kd2 {[%clk 0:00:43]}  Rbb3 {[%clk 0:00:44]} 37. h5 {[%clk 0:00:41]}  gxh5 {[%clk 0:00:40]} 38. Rxh5 {[%clk 0:00:42]}  Rxe3 {[%clk 0:00:38]} 39. Rxb2 {[%clk 0:00:40]}  Red3+ {[%clk 0:00:36]} 40. Ke2 {[%clk 0:00:37]}  Rxd4 {[%clk 0:00:36]} 41. Rh7 {[%clk 0:00:37]}  Re4+ {[%clk 0:00:36]} 42. Kd2 {[%clk 0:00:36]}  Re7 {[%clk 0:00:35]} 43. Rb4 {[%clk 0:00:21]}  c5 {[%clk 0:00:32]} 44. Rb5 {[%clk 0:00:21]}  Kc6 {[%clk 0:00:33]} 45. Rb8 {[%clk 0:00:21]}  Ra4 {[%clk 0:00:30]} 46. Rc8+ {[%clk 0:00:13]}  Kb5 {[%clk 0:00:30]} 47. Rb8+ {[%clk 0:00:10]}  Kc6 {[%clk 0:00:28]} 48. Rc8+ {[%clk 0:00:10]}  Kb6 {[%clk 0:00:27]} 49. Rd8 {[%clk 0:00:06]}  Rd4+ {[%clk 0:00:24]} 50. Kc3 {[%clk 0:00:05]}  Kc7 {[%clk 0:00:20]} 51. Rf8 {[%clk 0:00:04]}  Rxf4 {[%clk 0:00:20]} 52. g6 {[%clk 0:00:05]}  Rf3+ {[%clk 0:00:17]} 53. Kd2 {[%clk 0:00:04]}  Kd7 {[%clk 0:00:16]} 54. Rf7 {[%clk 0:00:04]}  Rxf7 {[%clk 0:00:16]} 55. gxf7 {[%clk 0:00:04]}  Ke7 {[%clk 0:00:16]} 56. Rxg7 {[%clk 0:00:05]}  c4 {[%clk 0:00:15]} 57. Ke2 {[%clk 0:00:04]}  Rh3 {[%clk 0:00:14]} 58. Rg6 {[%clk 0:00:03]}  Kxf7 {[%clk 0:00:14]} 59. Rd6 {[%clk 0:00:03]}  c3 {[%clk 0:00:12]} 60. Rxd5 {[%clk 0:00:03]}  Ke6 {[%clk 0:00:13]} 61. Rc5 {[%clk 0:00:03]}  Kf6 {[%clk 0:00:13]} 62. Kf2 {[%clk 0:00:02]}  Kg5 {[%clk 0:00:13]} 63. Rc8 {[%clk 0:00:02]}  Rd3 {[%clk 0:00:13]} 0-1


[Site "https://www.chess.com"]